Workbook

Sheet Squad 1
A1: Squad 1 - Bowling Centar Kolosej - Ušće 23.02.2011 17:00
A3: Pozicija | B3: Ime igraca | C3: I igra | D3: II igra | E3: III igra | F3: IV igra | G3: V igra | H3: VI igra | I3: Total | J3: Prosek
A4: 1 | B4: Miladin Dabetić | C4: 180 | D4: 235 | E4: 202 | F4: 199 | G4: 188 | H4: 203 | I4: =SUM(C4:H4) -> 1207 | J4: =AVERAGE(C4:H4) -> 201.1666667
A5: 2 | B5: Vladimir Štrbac | C5: 195 | D5: 203 | E5: 170 | F5: 182 | G5: 200 | H5: 219 | I5: =SUM(C5:H5) -> 1169 | J5: =AVERAGE(C5:H5) -> 194.8333333
A6: 3 | B6: Stevo Kovačević | C6: 171 | D6: 222 | E6: 210 | F6: 193 | G6: 182 | H6: 187 | I6: =SUM(C6:H6) -> 1165 | J6: =AVERAGE(C6:H6) -> 194.1666667
A7: 4 | B7: Boško Nikolić | C7: 177 | D7: 223 | E7: 193 | F7: 206 | G7: 197 | H7: 138 | I7: =SUM(C7:H7) -> 1134 | J7: =AVERAGE(C7:H7) -> 189
A8: 5 | B8: Boban Stojić | C8: 167 | D8: 179 | E8: 196 | F8: 202 | G8: 153 | H8: 199 | I8: =SUM(C8:H8) -> 1096 | J8: =AVERAGE(C8:H8) -> 182.6666667
A9: 6 | B9: Mladen Aćimović | C9: 144 | D9: 171 | E9: 217 | F9: 135 | G9: 203 | H9: 221 | I9: =SUM(C9:H9) -> 1091 | J9: =AVERAGE(C9:H9) -> 181.8333333
A10: 7 | B10: Predrag Lukovac | C10: 226 | D10: 135 | E10: 151 | F10: 212 | G10: 201 | H10: 161 | I10: =SUM(C10:H10) -> 1086 | J10: =AVERAGE(C10:H10) -> 181
A11: 8 | B11: Bojan Kovačić | C11: 146 | D11: 153 | E11: 201 | F11: 155 | G11: 183 | H11: 206 | I11: =SUM(C11:H11) -> 1044 | J11: =AVERAGE(C11:H11) -> 174
A12: 9 | B12: Jovo Milovanović | C12: 145 | D12: 189 | E12: 165 | F12: 200 | G12: 151 | H12: 172 | I12: =SUM(C12:H12) -> 1022 | J12: =AVERAGE(C12:H12) -> 170.3333333
A13: 10 | B13: Milan Zlatar | C13: 172 | D13: 155 | E13: 187 | F13: 174 | G13: 138 | H13: 117 | I13: =SUM(C13:H13) -> 943 | J13: =AVERAGE(C13:H13) -> 157.1666667
A14: 11 | B14: Milorad Radmanović | C14: 160 | D14: 134 | E14: 154 | F14: 144 | G14: 185 | H14: 158 | I14: =SUM(C14:H14) -> 935 | J14: =AVERAGE(C14:H14) -> 155.8333333
A15: 12 | B15: Nataša Drajer | C15: 139 | D15: 124 | E15: 121 | F15: 181 | G15: 171 | H15: 181 | I15: =SUM(C15:H15) -> 917 | J15: =AVERAGE(C15:H15) -> 152.8333333
A16: 13 | B16: Zoran Milak | C16: 121 | D16: 168 | E16: 180 | F16: 137 | G16: 128 | H16: 170 | I16: =SUM(C16:H16) -> 904 | J16: =AVERAGE(C16:H16) -> 150.6666667
A17: 14 | B17: Dragan Ilić | C17: 101 | D17: 122 | E17: 122 | F17: 137 | G17: 150 | H17: 152 | I17: =SUM(C17:H17) -> 784 | J17: =AVERAGE(C17:H17) -> 130.6666667
A18: 15 | B18: Aleksandar Nikolić | C18: 165 | D18: 166 | E18: 186 | F18: 152 | G18: 0 | H18: 0 | I18: =SUM(C18:H18) -> 669 | J18: =AVERAGE(C18:H18) -> 111.5
A19: 16 | B19: Simon Simonović | C19: 166 | D19: 182 | E19: 155 | F19: 128 | G19: 0 | H19: 0 | I19: =SUM(C19:H19) -> 631 | J19: =AVERAGE(C19:H19) -> 105.1666667
A20: 17 | I20: =SUM(C20:H20) -> 0 | J20: =AVERAGE(C20:H20) -> 
A21: 18 | I21: 0
A22: 19 | I22: 0
A23: 20 | I23: 0
A24: 21 | I24: 0
A25: 22 | I25: 0
A26: 23 | I26: =SUM(C26:H26) -> 0
A27: 24 | I27: 0

Sheet Squad 2
A1: Squad 2 - Bowling Centar Kolosej - Ušće 23.02.2011 20:00
A3: Pozicija | B3: Ime igraca | C3: I igra | D3: II igra | E3: III igra | F3: IV igra | G3: V igra | H3: VI igra | I3: Total | J3: Prosek
A4: 1 | B4: Predrag Drajer | C4: 184 | D4: 208 | E4: 202 | F4: 194 | G4: 202 | H4: 153 | I4: =SUM(C4:H4) -> 1143 | J4: =AVERAGE(C4:H4) -> 190.5
A5: 2 | B5: Dragana Petrović | C5: 204 | D5: 212 | E5: 140 | F5: 158 | G5: 202 | H5: 148 | I5: =SUM(C5:H5) -> 1064 | J5: =AVERAGE(C5:H5) -> 177.3333333
A6: 3 | B6: Saša Macanović | C6: 175 | D6: 146 | E6: 155 | F6: 181 | G6: 137 | H6: 199 | I6: =SUM(C6:H6) -> 993 | J6: =AVERAGE(C6:H6) -> 165.5
A7: 4 | B7: Dejan Milovanović | C7: 158 | D7: 158 | E7: 182 | F7: 162 | G7: 143 | H7: 182 | I7: =SUM(C7:H7) -> 985 | J7: =AVERAGE(C7:H7) -> 164.1666667
A8: 5 | B8: Goran Živanović | C8: 138 | D8: 149 | E8: 192 | F8: 158 | G8: 144 | H8: 169 | I8: =SUM(C8:H8) -> 950 | J8: =AVERAGE(C8:H8) -> 158.3333333
A9: 6 | B9: Aleksandar Stanaćev | C9: 160 | D9: 172 | E9: 143 | F9: 184 | G9: 128 | H9: 148 | I9: =SUM(C9:H9) -> 935 | J9: =AVERAGE(C9:H9) -> 155.8333333
A10: 7 | B10: Željko Gluvajić | C10: 148 | D10: 157 | E10: 180 | F10: 116 | G10: 140 | H10: 192 | I10: =SUM(C10:H10) -> 933 | J10: =AVERAGE(C10:H10) -> 155.5
A11: 8 | B11: Aleksandar Ešpek | C11: 148 | D11: 118 | E11: 183 | F11: 201 | G11: 150 | H11: 118 | I11: =SUM(C11:H11) -> 918 | J11: =AVERAGE(C11:H11) -> 153
A12: 9 | B12: Branislav Skender | C12: 156 | D12: 128 | E12: 134 | F12: 140 | G12: 0 | H12: 0 | I12: =SUM(C12:H12) -> 558 | J12: =AVERAGE(C12:H12) -> 93
A13: 10 | I13: =SUM(C13:H13) -> 0 | J13: =AVERAGE(C13:H13) -> 
A14: 11 | I14: 0
A15: 12 | I15: 0
A16: 13 | I16: 0
A17: 14 | I17: 0
A18: 15 | I18: 0
A19: 16 | I19: 0
A20: 17 | I20: 0
A21: 18 | I21: 0
A22: 19 | I22: 0
A23: 20 | I23: 0
A24: 21 | I24: 0
A25: 22 | I25: 0
A26: 23 | I26: 0
A27: 24 | I27: 0

Sheet Squad 3
A1: Squad 3 - Bowling Centar Kolosej - Ušće 24.02.2011 17:00
A3: Pozicija | B3: Ime igraca | C3: I igra | D3: II igra | E3: III igra | F3: IV igra | G3: V igra | H3: VI igra | I3: Total | J3: Prosek
A4: 1 | B4: Nenad Stojiljković | C4: 165 | D4: 229 | E4: 174 | F4: 134 | G4: 213 | H4: 187 | I4: =SUM(C4:H4) -> 1102 | J4: =AVERAGE(C4:H4) -> 183.6666667
A5: 2 | B5: Vladimir Vesić | C5: 152 | D5: 197 | E5: 165 | F5: 179 | G5: 148 | H5: 201 | I5: =SUM(C5:H5) -> 1042 | J5: =AVERAGE(C5:H5) -> 173.6666667
A6: 3 | B6: Milan Davidović | C6: 137 | D6: 142 | E6: 147 | F6: 235 | G6: 158 | H6: 199 | I6: =SUM(C6:H6) -> 1018 | J6: =AVERAGE(C6:H6) -> 169.6666667
A7: 4 | B7: Danica Vijatović | C7: 151 | D7: 212 | E7: 163 | F7: 157 | G7: 159 | H7: 163 | I7: =SUM(C7:H7) -> 1005 | J7: =AVERAGE(C7:H7) -> 167.5
A8: 5 | B8: Zita Širmer | C8: 185 | D8: 134 | E8: 174 | F8: 149 | G8: 199 | H8: 152 | I8: =SUM(C8:H8) -> 993 | J8: =AVERAGE(C8:H8) -> 165.5
A9: 6 | B9: Srba Mirić | C9: 167 | D9: 193 | E9: 145 | F9: 132 | G9: 197 | H9: 157 | I9: =SUM(C9:H9) -> 991 | J9: =AVERAGE(C9:H9) -> 165.1666667
A10: 7 | B10: Milutin Drajer | C10: 192 | D10: 144 | E10: 173 | F10: 127 | G10: 168 | H10: 182 | I10: =SUM(C10:H10) -> 986 | J10: =AVERAGE(C10:H10) -> 164.3333333
A11: 8 | B11: Biljana Mirić | C11: 130 | D11: 187 | E11: 189 | F11: 120 | G11: 151 | H11: 166 | I11: =SUM(C11:H11) -> 943 | J11: =AVERAGE(C11:H11) -> 157.1666667
A12: 9 | B12: Oliver Širmer | C12: 189 | D12: 143 | E12: 143 | F12: 129 | G12: 146 | H12: 135 | I12: =SUM(C12:H12) -> 885 | J12: =AVERAGE(C12:H12) -> 147.5
A13: 10 | I13: =SUM(C13:H13) -> 0 | J13: =AVERAGE(C13:H13) -> 
A14: 11 | I14: 0
A15: 12 | I15: 0
A16: 13 | I16: 0
A17: 14 | I17: 0
A18: 15 | I18: 0
A19: 16 | I19: 0
A20: 17 | I20: 0
A21: 18 | I21: 0
A22: 19 | I22: 0
A23: 20 | I23: 0
A24: 21 | I24: 0
A25: 22 | I25: 0
A26: 23 | I26: 0
A27: 24 | I27: 0

Sheet Squad 4
A1: Squad 4 - Bowling Centar Kolosej - Ušće 24.02.2011 20:00
A3: Pozicija | B3: Ime igraca | C3: I igra | D3: II igra | E3: III igra | F3: IV igra | G3: V igra | H3: VI igra | I3: Total | J3: Prosek
A4: 1 | B4: Bertalan Puškaš | C4: 160 | D4: 223 | E4: 215 | F4: 227 | G4: 220 | H4: 188 | I4: =SUM(C4:H4) -> 1233 | J4: =AVERAGE(C4:H4) -> 205.5
A5: 2 | B5: Milan Dragić | C5: 170 | D5: 209 | E5: 173 | F5: 211 | G5: 215 | H5: 222 | I5: =SUM(C5:H5) -> 1200 | J5: =AVERAGE(C5:H5) -> 200
A6: 3 | B6: Slavoljub Miljkovic | C6: 184 | D6: 238 | E6: 209 | F6: 182 | G6: 178 | H6: 162 | I6: =SUM(C6:H6) -> 1153 | J6: =AVERAGE(C6:H6) -> 192.1666667
A7: 4 | B7: Saša Pavlovski | C7: 144 | D7: 209 | E7: 142 | F7: 221 | G7: 258 | H7: 170 | I7: =SUM(C7:H7) -> 1144 | J7: =AVERAGE(C7:H7) -> 190.6666667
A8: 5 | B8: Djordje Djermanović | C8: 190 | D8: 186 | E8: 195 | F8: 172 | G8: 177 | H8: 183 | I8: =SUM(C8:H8) -> 1103 | J8: =AVERAGE(C8:H8) -> 183.8333333
A9: 6 | B9: Borivoj Djuran | C9: 202 | D9: 150 | E9: 183 | F9: 183 | G9: 181 | H9: 196 | I9: =SUM(C9:H9) -> 1095 | J9: =AVERAGE(C9:H9) -> 182.5
A10: 7 | B10: Vanja Majski | C10: 129 | D10: 153 | E10: 235 | F10: 221 | G10: 182 | H10: 171 | I10: =SUM(C10:H10) -> 1091 | J10: =AVERAGE(C10:H10) -> 181.8333333
A11: 8 | B11: Goran Balać | C11: 158 | D11: 175 | E11: 134 | F11: 182 | G11: 238 | H11: 180 | I11: =SUM(C11:H11) -> 1067 | J11: =AVERAGE(C11:H11) -> 177.8333333
A12: 9 | B12: Nemanja Sarić | C12: 179 | D12: 141 | E12: 204 | F12: 162 | G12: 186 | H12: 168 | I12: =SUM(C12:H12) -> 1040 | J12: =AVERAGE(C12:H12) -> 173.3333333
A13: 10 | B13: Aleksandar Obradović | C13: 201 | D13: 161 | E13: 147 | F13: 186 | G13: 169 | H13: 141 | I13: =SUM(C13:H13) -> 1005 | J13: =AVERAGE(C13:H13) -> 167.5
A14: 11 | B14: Živko Cvejin | C14: 152 | D14: 162 | E14: 140 | F14: 160 | G14: 168 | H14: 191 | I14: =SUM(C14:H14) -> 973 | J14: =AVERAGE(C14:H14) -> 162.1666667
A15: 12 | B15: Darko Nesić | C15: 172 | D15: 157 | E15: 194 | F15: 155 | G15: 154 | H15: 141 | I15: =SUM(C15:H15) -> 973 | J15: =AVERAGE(C15:H15) -> 162.1666667
A16: 13 | B16: Dragan Jontić | C16: 181 | D16: 159 | E16: 148 | F16: 141 | G16: 138 | H16: 0 | I16: =SUM(C16:H16) -> 767 | J16: =AVERAGE(C16:H16) -> 127.8333333
A17: 14 | I17: =SUM(C17:H17) -> 0 | J17: =AVERAGE(C17:H17) -> 
A18: 15 | I18: 0
A19: 16 | I19: 0
A20: 17 | I20: 0
A21: 18 | I21: 0
A22: 19 | I22: 0
A23: 20 | I23: 0
A24: 21 | I24: 0
A25: 22 | I25: 0
A26: 23 | I26: 0
A27: 24 | I27: 0

Sheet Kvalifikacije TOTAL
A1: Kvalifikacije - Pojedinačno prvenstvo Srbije (M)
A2: Bowling Centar Kolosej - Ušće 23-24.02.2011
A4: Pozicija | B4: Ime igraca | C4: I igra | D4: II igra | E4: III igra | F4: IV igra | G4: V igra | H4: VI igra | I4: Total | J4: Prosek | K4: Cut
A5: 1 | B5: Bertalan Puškaš | C5: 160 | D5: 223 | E5: 215 | F5: 227 | G5: 220 | H5: 188 | I5: =SUM(C5:H5) -> 1233 | J5: =AVERAGE(C5:H5) -> 205.5 | K5: =IF(I5=0,0,I5-$I$20) -> 147
A6: 2 | B6: Miladin Dabetić | C6: 180 | D6: 235 | E6: 202 | F6: 199 | G6: 188 | H6: 203 | I6: 1207 | J6: 201.1666667 | K6: 121
A7: 3 | B7: Milan Dragić | C7: 170 | D7: 209 | E7: 173 | F7: 211 | G7: 215 | H7: 222 | I7: 1200 | J7: 200 | K7: 114
A8: 4 | B8: Vladimir Štrbac | C8: 195 | D8: 203 | E8: 170 | F8: 182 | G8: 200 | H8: 219 | I8: 1169 | J8: 194.8333333 | K8: 83
A9: 5 | B9: Stevo Kovačević | C9: 171 | D9: 222 | E9: 210 | F9: 193 | G9: 182 | H9: 187 | I9: 1165 | J9: 194.1666667 | K9: 79
A10: 6 | B10: Slavoljub Miljkovic | C10: 184 | D10: 238 | E10: 209 | F10: 182 | G10: 178 | H10: 162 | I10: 1153 | J10: 192.1666667 | K10: 67
A11: 7 | B11: Saša Pavlovski | C11: 144 | D11: 209 | E11: 142 | F11: 221 | G11: 258 | H11: 170 | I11: 1144 | J11: 190.6666667 | K11: 58
A12: 8 | B12: Predrag Drajer | C12: 184 | D12: 208 | E12: 202 | F12: 194 | G12: 202 | H12: 153 | I12: 1143 | J12: 190.5 | K12: 57
A13: 9 | B13: Boško Nikolić | C13: 177 | D13: 223 | E13: 193 | F13: 206 | G13: 197 | H13: 138 | I13: 1134 | J13: 189 | K13: 48
A14: 10 | B14: Djordje Djermanović | C14: 190 | D14: 186 | E14: 195 | F14: 172 | G14: 177 | H14: 183 | I14: 1103 | J14: 183.8333333 | K14: 17
A15: 11 | B15: Nenad Stojiljković | C15: 165 | D15: 229 | E15: 174 | F15: 134 | G15: 213 | H15: 187 | I15: 1102 | J15: 183.6666667 | K15: 16
A16: 12 | B16: Boban Stojić | C16: 167 | D16: 179 | E16: 196 | F16: 202 | G16: 153 | H16: 199 | I16: 1096 | J16: 182.6666667 | K16: 10
A17: 13 | B17: Borivoj Djuran | C17: 202 | D17: 150 | E17: 183 | F17: 183 | G17: 181 | H17: 196 | I17: 1095 | J17: 182.5 | K17: 9
A18: 14 | B18: Mladen Aćimović | C18: 144 | D18: 171 | E18: 217 | F18: 135 | G18: 203 | H18: 221 | I18: 1091 | J18: 181.8333333 | K18: 5
A19: 15 | B19: Vanja Majski | C19: 129 | D19: 153 | E19: 235 | F19: 221 | G19: 182 | H19: 171 | I19: 1091 | J19: 181.8333333 | K19: 5
A20: 16 | B20: Predrag Lukovac | C20: 226 | D20: 135 | E20: 151 | F20: 212 | G20: 201 | H20: 161 | I20: 1086 | J20: 181 | K20: 0
A21: 17 | B21: Goran Balać | C21: 158 | D21: 175 | E21: 134 | F21: 182 | G21: 238 | H21: 180 | I21: 1067 | J21: 177.8333333 | K21: =IF(I21=0,0,I21-$I$20) -> -19
A22: 18 | B22: Bojan Kovačić | C22: 146 | D22: 153 | E22: 201 | F22: 155 | G22: 183 | H22: 206 | I22: 1044 | J22: 174 | K22: -42
A23: 19 | B23: Vladimir Vesić | C23: 152 | D23: 197 | E23: 165 | F23: 179 | G23: 148 | H23: 201 | I23: 1042 | J23: 173.6666667 | K23: -44
A24: 20 | B24: Nemanja Sarić | C24: 179 | D24: 141 | E24: 204 | F24: 162 | G24: 186 | H24: 168 | I24: 1040 | J24: 173.3333333 | K24: -46
A25: 21 | B25: Jovo Milovanović | C25: 145 | D25: 189 | E25: 165 | F25: 200 | G25: 151 | H25: 172 | I25: 1022 | J25: 170.3333333 | K25: -64
A26: 22 | B26: Milan Davidović | C26: 137 | D26: 142 | E26: 147 | F26: 235 | G26: 158 | H26: 199 | I26: 1018 | J26: 169.6666667 | K26: -68
A27: 23 | B27: Aleksandar Obradović | C27: 201 | D27: 161 | E27: 147 | F27: 186 | G27: 169 | H27: 141 | I27: 1005 | J27: 167.5 | K27: -81
A28: 24 | B28: Saša Macanović | C28: 175 | D28: 146 | E28: 155 | F28: 181 | G28: 137 | H28: 199 | I28: 993 | J28: 165.5 | K28: -93
A29: 25 | B29: Srba Mirić | C29: 167 | D29: 193 | E29: 145 | F29: 132 | G29: 197 | H29: 157 | I29: 991 | J29: 165.1666667 | K29: -95
A30: 26 | B30: Milutin Drajer | C30: 192 | D30: 144 | E30: 173 | F30: 127 | G30: 168 | H30: 182 | I30: 986 | J30: 164.3333333 | K30: -100
A31: 27 | B31: Dejan Milovanović | C31: 158 | D31: 158 | E31: 182 | F31: 162 | G31: 143 | H31: 182 | I31: 985 | J31: 164.1666667 | K31: -101
A32: 28 | B32: Živko Cvejin | C32: 152 | D32: 162 | E32: 140 | F32: 160 | G32: 168 | H32: 191 | I32: 973 | J32: 162.1666667 | K32: -113
A33: 29 | B33: Darko Nesić | C33: 172 | D33: 157 | E33: 194 | F33: 155 | G33: 154 | H33: 141 | I33: 973 | J33: 162.1666667 | K33: -113
A34: 30 | B34: Goran Živanović | C34: 138 | D34: 149 | E34: 192 | F34: 158 | G34: 144 | H34: 169 | I34: 950 | J34: 158.3333333 | K34: -136
A35: 31 | B35: Milan Zlatar | C35: 172 | D35: 155 | E35: 187 | F35: 174 | G35: 138 | H35: 117 | I35: 943 | J35: 157.1666667 | K35: -143
A36: 32 | B36: Milorad Radmanović | C36: 160 | D36: 134 | E36: 154 | F36: 144 | G36: 185 | H36: 158 | I36: 935 | J36: 155.8333333 | K36: -151
A37: 33 | B37: Aleksandar Stanaćev | C37: 160 | D37: 172 | E37: 143 | F37: 184 | G37: 128 | H37: 148 | I37: 935 | J37: 155.8333333 | K37: -151
A38: 34 | B38: Željko Gluvajić | C38: 148 | D38: 157 | E38: 180 | F38: 116 | G38: 140 | H38: 192 | I38: 933 | J38: 155.5 | K38: -153
A39: 35 | B39: Aleksandar Ešpek | C39: 148 | D39: 118 | E39: 183 | F39: 201 | G39: 150 | H39: 118 | I39: 918 | J39: 153 | K39: -168
A40: 36 | B40: Zoran Milak | C40: 121 | D40: 168 | E40: 180 | F40: 137 | G40: 128 | H40: 170 | I40: 904 | J40: 150.6666667 | K40: -182
A41: 37 | B41: Oliver Širmer | C41: 189 | D41: 143 | E41: 143 | F41: 129 | G41: 146 | H41: 135 | I41: 885 | J41: 147.5 | K41: -201
A42: 38 | B42: Dragan Ilić | C42: 101 | D42: 122 | E42: 122 | F42: 137 | G42: 150 | H42: 152 | I42: 784 | J42: 130.6666667 | K42: -302
A43: 39 | B43: Dragan Jontić | C43: 181 | D43: 159 | E43: 148 | F43: 141 | G43: 138 | H43: 0 | I43: 767 | J43: 127.8333333 | K43: -319
A44: 40 | B44: Aleksandar Nikolić | C44: 165 | D44: 166 | E44: 186 | F44: 152 | G44: 0 | H44: 0 | I44: 669 | J44: 111.5 | K44: -417
A45: 41 | B45: Simon Simonović | C45: 166 | D45: 182 | E45: 155 | F45: 128 | G45: 0 | H45: 0 | I45: 631 | J45: 105.1666667 | K45: -455
A46: 42 | B46: Branislav Skender | C46: 156 | D46: 128 | E46: 134 | F46: 140 | G46: 0 | H46: 0 | I46: 558 | J46: 93 | K46: -528

Sheet step1
A1: STEP 1 - Pojedinačno prvenstvo Srbije (M)
A2: Bowling Centar Kolosej - Ušće 25.02.2011
A4: Pozicija | B4: Ime igraca | C4: Kvalifikacije | D4: I igra | E4: II igra | F4: III igra | G4: IV igra | H4: V igra | I4: VI igra | J4: Total | K4: Prosek | L4: Total st1 | M4: Prosek st1 | N4: Cut
A5: 1 | B5: ='Kvalifikacije TOTAL'!B5 -> Bertalan Puškaš | C5: ='Kvalifikacije TOTAL'!I5 -> 1233 | J5: =SUM(D5:I5) -> 0 | K5: =AVERAGE(D5:I5) ->  | L5: =C5+J5 -> 1233 | M5: =L5/12 -> 102.75 | N5: =IF(L5=0,0,L5-$L$12) -> 90
A6: 2 | B6: ='Kvalifikacije TOTAL'!B6 -> Miladin Dabetić | C6: ='Kvalifikacije TOTAL'!I6 -> 1207 | J6: =SUM(D6:I6) -> 0 | K6: =AVERAGE(D6:I6) ->  | L6: =C6+J6 -> 1207 | M6: =L6/12 -> 100.5833333 | N6: 64
A7: 3 | B7: ='Kvalifikacije TOTAL'!B7 -> Milan Dragić | C7: ='Kvalifikacije TOTAL'!I7 -> 1200 | J7: =SUM(D7:I7) -> 0 | K7: =AVERAGE(D7:I7) ->  | L7: =C7+J7 -> 1200 | M7: =L7/12 -> 100 | N7: 57
A8: 4 | B8: ='Kvalifikacije TOTAL'!B8 -> Vladimir Štrbac | C8: ='Kvalifikacije TOTAL'!I8 -> 1169 | J8: =SUM(D8:I8) -> 0 | K8: =AVERAGE(D8:I8) ->  | L8: =C8+J8 -> 1169 | M8: =L8/12 -> 97.41666667 | N8: 26
A9: 5 | B9: ='Kvalifikacije TOTAL'!B9 -> Stevo Kovačević | C9: ='Kvalifikacije TOTAL'!I9 -> 1165 | J9: =SUM(D9:I9) -> 0 | K9: =AVERAGE(D9:I9) ->  | L9: =C9+J9 -> 1165 | M9: =L9/12 -> 97.08333333 | N9: 22
A10: 6 | B10: ='Kvalifikacije TOTAL'!B10 -> Slavoljub Miljkovic | C10: ='Kvalifikacije TOTAL'!I10 -> 1153 | J10: =SUM(D10:I10) -> 0 | K10: =AVERAGE(D10:I10) ->  | L10: =C10+J10 -> 1153 | M10: =L10/12 -> 96.08333333 | N10: 10
A11: 7 | B11: ='Kvalifikacije TOTAL'!B11 -> Saša Pavlovski | C11: ='Kvalifikacije TOTAL'!I11 -> 1144 | J11: =SUM(D11:I11) -> 0 | K11: =AVERAGE(D11:I11) ->  | L11: =C11+J11 -> 1144 | M11: =L11/12 -> 95.33333333 | N11: 1
A12: 8 | B12: ='Kvalifikacije TOTAL'!B12 -> Predrag Drajer | C12: ='Kvalifikacije TOTAL'!I12 -> 1143 | J12: =SUM(D12:I12) -> 0 | K12: =AVERAGE(D12:I12) ->  | L12: =C12+J12 -> 1143 | M12: =L12/12 -> 95.25 | N12: =IF(L12=0,0,L12-$L$12) -> 0
A13: 9 | B13: ='Kvalifikacije TOTAL'!B13 -> Boško Nikolić | C13: ='Kvalifikacije TOTAL'!I13 -> 1134 | J13: =SUM(D13:I13) -> 0 | K13: =AVERAGE(D13:I13) ->  | L13: =C13+J13 -> 1134 | M13: =L13/12 -> 94.5 | N13: =IF(L13=0,0,L13-$L$12) -> -9
A14: 10 | B14: ='Kvalifikacije TOTAL'!B14 -> Djordje Djermanović | C14: ='Kvalifikacije TOTAL'!I14 -> 1103 | J14: =SUM(D14:I14) -> 0 | K14: =AVERAGE(D14:I14) ->  | L14: =C14+J14 -> 1103 | M14: =L14/12 -> 91.91666667 | N14: -40
A15: 11 | B15: ='Kvalifikacije TOTAL'!B15 -> Nenad Stojiljković | C15: ='Kvalifikacije TOTAL'!I15 -> 1102 | J15: =SUM(D15:I15) -> 0 | K15: =AVERAGE(D15:I15) ->  | L15: =C15+J15 -> 1102 | M15: =L15/12 -> 91.83333333 | N15: -41
A16: 12 | B16: ='Kvalifikacije TOTAL'!B16 -> Boban Stojić | C16: ='Kvalifikacije TOTAL'!I16 -> 1096 | J16: =SUM(D16:I16) -> 0 | K16: =AVERAGE(D16:I16) ->  | L16: =C16+J16 -> 1096 | M16: =L16/12 -> 91.33333333 | N16: -47
A17: 13 | B17: ='Kvalifikacije TOTAL'!B17 -> Borivoj Djuran | C17: ='Kvalifikacije TOTAL'!I17 -> 1095 | J17: =SUM(D17:I17) -> 0 | K17: =AVERAGE(D17:I17) ->  | L17: =C17+J17 -> 1095 | M17: =L17/12 -> 91.25 | N17: -48
A18: 14 | B18: ='Kvalifikacije TOTAL'!B18 -> Mladen Aćimović | C18: ='Kvalifikacije TOTAL'!I18 -> 1091 | J18: =SUM(D18:I18) -> 0 | K18: =AVERAGE(D18:I18) ->  | L18: =C18+J18 -> 1091 | M18: =L18/12 -> 90.91666667 | N18: -52
A19: 15 | B19: ='Kvalifikacije TOTAL'!B19 -> Vanja Majski | C19: ='Kvalifikacije TOTAL'!I19 -> 1091 | J19: =SUM(D19:I19) -> 0 | K19: =AVERAGE(D19:I19) ->  | L19: =C19+J19 -> 1091 | M19: =L19/12 -> 90.91666667 | N19: -52
A20: 16 | B20: ='Kvalifikacije TOTAL'!B20 -> Predrag Lukovac | C20: ='Kvalifikacije TOTAL'!I20 -> 1086 | J20: =SUM(D20:I20) -> 0 | K20: =AVERAGE(D20:I20) ->  | L20: =C20+J20 -> 1086 | M20: =L20/12 -> 90.5 | N20: -57

Sheet step2
A1: STEP 2 - Pojedinačno prvenstvo Srbije (M)
A2: Bowling Centar Kolosej - Ušće 25.02.2011
A4: Pozicija | B4: Ime igraca | C4: kv+st1 50% | D4: I igra | E4: II igra | F4: III igra | G4: Total | H4: Prosek | I4: Total st2 | J4: Prosek st2 | K4: Cut
A5: 1 | B5: =step1!B5 -> Bertalan Puškaš | C5: =step1!L5/2 -> 616.5 | G5: =SUM(D5:F5) -> 0 | H5: =AVERAGE(D5:F5) ->  | I5: =C5+G5 -> 616.5 | J5: =I5/15 -> 41.1 | K5: =IF(I5=0,0,I5-$I$9) -> 34
A6: 2 | B6: =step1!B6 -> Miladin Dabetić | C6: =step1!L6/2 -> 603.5 | G6: 0 | I6: 603.5 | J6: 40.23333333 | K6: =IF(I6=0,0,I6-$I$9) -> 21
A7: 3 | B7: =step1!B7 -> Milan Dragić | C7: =step1!L7/2 -> 600 | G7: 0 | I7: 600 | J7: 40 | K7: =IF(I7=0,0,I7-$I$9) -> 17.5
A8: 4 | B8: =step1!B8 -> Vladimir Štrbac | C8: =step1!L8/2 -> 584.5 | G8: 0 | I8: 584.5 | J8: 38.96666667 | K8: =IF(I8=0,0,I8-$I$8) -> 0
A9: 5 | B9: =step1!B9 -> Stevo Kovačević | C9: =step1!L9/2 -> 582.5 | G9: 0 | I9: 582.5 | J9: 38.83333333 | K9: =IF(I9=0,0,I9-$I$8) -> -2
A10: 6 | B10: =step1!B10 -> Slavoljub Miljkovic | C10: =step1!L10/2 -> 576.5 | G10: 0 | I10: 576.5 | J10: 38.43333333 | K10: =IF(I10=0,0,I10-$I$8) -> -8
A11: 7 | B11: =step1!B11 -> Saša Pavlovski | C11: =step1!L11/2 -> 572 | G11: 0 | I11: 572 | J11: 38.13333333 | K11: =IF(I11=0,0,I11-$I$8) -> -12.5
A12: 8 | B12: =step1!B12 -> Predrag Drajer | C12: =step1!L12/2 -> 571.5 | G12: 0 | I12: 571.5 | J12: 38.1 | K12: =IF(I12=0,0,I12-$I$8) -> -13

Sheet RoundRobin
A1: STEP 3 - Round Robin (M)
B3: Ime igraca | C3: Igra | D3: Bonus | E3: Total
A4: 1 | B4: =step2!B5 -> Bertalan Puškaš | D4: =G4+H4 -> 10 | E4: =C4+D4 -> 10 | G4: =IF(C4=C5,10,IF(C4>C5,20,0)) -> 10 | H4: =IF(C4>=250,10,IF(C4>=200,5,0)) -> 0
A5: 4 | B5: =step2!B8 -> Vladimir Štrbac | D5: =G5+H5 -> 10 | E5: =C5+D5 -> 10 | G5: =IF(C5=C4,10,IF(C5>C4,20,0)) -> 10 | H5: =IF(C5>=250,10,IF(C5>=200,5,0)) -> 0
A7: 2 | B7: =step2!B6 -> Miladin Dabetić | D7: =G7+H7 -> 10 | E7: =C7+D7 -> 10 | G7: =IF(C7=C8,10,IF(C7>C8,20,0)) -> 10 | H7: =IF(C7>=250,10,IF(C7>=200,5,0)) -> 0
A8: 3 | B8: =step2!B7 -> Milan Dragić | D8: =G8+H8 -> 10 | E8: =C8+D8 -> 10 | G8: =IF(C8=C7,10,IF(C8>C7,20,0)) -> 10 | H8: =IF(C8>=250,10,IF(C8>=200,5,0)) -> 0
B11: Ime igraca | C11: Igra | D11: Bonus | E11: Total
A12: 1 | B12: =step2!B5 -> Bertalan Puškaš | D12: =G12+H12 -> 10 | E12: =C12+D12 -> 10 | G12: =IF(C12=C13,10,IF(C12>C13,20,0)) -> 10 | H12: =IF(C12>=250,10,IF(C12>=200,5,0)) -> 0
A13: 3 | B13: =step2!B7 -> Milan Dragić | D13: =G13+H13 -> 10 | E13: =C13+D13 -> 10 | G13: =IF(C13=C12,10,IF(C13>C12,20,0)) -> 10 | H13: =IF(C13>=250,10,IF(C13>=200,5,0)) -> 0
A15: 2 | B15: =step2!B6 -> Miladin Dabetić | D15: =G15+H15 -> 10 | E15: =C15+D15 -> 10 | G15: =IF(C15=C16,10,IF(C15>C16,20,0)) -> 10 | H15: =IF(C15>=250,10,IF(C15>=200,5,0)) -> 0
A16: 4 | B16: =step2!B8 -> Vladimir Štrbac | D16: =G16+H16 -> 10 | E16: =C16+D16 -> 10 | G16: =IF(C16=C15,10,IF(C16>C15,20,0)) -> 10 | H16: =IF(C16>=250,10,IF(C16>=200,5,0)) -> 0
B19: Ime igraca | C19: Igra | D19: Bonus | E19: Total
A20: 1 | B20: =step2!B5 -> Bertalan Puškaš | D20: =G20+H20 -> 10 | E20: =C20+D20 -> 10 | G20: =IF(C20=C21,10,IF(C20>C21,20,0)) -> 10 | H20: =IF(C20>=250,10,IF(C20>=200,5,0)) -> 0
A21: 2 | B21: =step2!B6 -> Miladin Dabetić | D21: =G21+H21 -> 10 | E21: =C21+D21 -> 10 | G21: =IF(C21=C20,10,IF(C21>C20,20,0)) -> 10 | H21: =IF(C21>=250,10,IF(C21>=200,5,0)) -> 0
A23: 3 | B23: =step2!B7 -> Milan Dragić | D23: =G23+H23 -> 10 | E23: =C23+D23 -> 10 | G23: =IF(C23=C24,10,IF(C23>C24,20,0)) -> 10 | H23: =IF(C23>=250,10,IF(C23>=200,5,0)) -> 0
A24: 4 | B24: =step2!B8 -> Vladimir Štrbac | D24: =G24+H24 -> 10 | E24: =C24+D24 -> 10 | G24: =IF(C24=C23,10,IF(C24>C23,20,0)) -> 10 | H24: =IF(C24>=250,10,IF(C24>=200,5,0)) -> 0

Sheet step3
A1: STEP 3 - Pojedinačno prvenstvo Srbije (M)
A2: Bowling Centar Kolosej - Ušće 25.02.2011
A4: Pozicija | B4: Ime igraca | C4: st2 | D4: I igra | E4: Bonus | F4: II igra | G4: Bonus | H4: III igra | I4: Bonus | J4: Total | K4: Prosek | L4: Total st3 | M4: Prosek st3 | N4: Cut
A5: 1 | B5: =step2!B5 -> Bertalan Puškaš | C5: =step2!I5 -> 616.5 | D5: =RoundRobin!C4 -> 0 | E5: =RoundRobin!D4 -> 10 | F5: =RoundRobin!C12 -> 0 | G5: =RoundRobin!D12 -> 10 | H5: =RoundRobin!C20 -> 0 | I5: =RoundRobin!D20 -> 10 | J5: =SUM(D5:I5) -> 30 | K5: =AVERAGE(D5,F5,H5) -> 0 | L5: =C5+J5 -> 646.5 | M5: =L5/18 -> 35.91666667 | N5: =IF(L5=0,0,L5-$L$8) -> 32
A6: 2 | B6: =step2!B6 -> Miladin Dabetić | C6: =step2!I6 -> 603.5 | D6: =RoundRobin!C7 -> 0 | E6: =RoundRobin!D7 -> 10 | F6: =RoundRobin!C15 -> 0 | G6: =RoundRobin!D15 -> 10 | H6: =RoundRobin!C21 -> 0 | I6: =RoundRobin!D21 -> 10 | J6: =SUM(D6:I6) -> 30 | K6: =AVERAGE(D6,F6,H6) -> 0 | L6: =C6+J6 -> 633.5 | M6: =L6/18 -> 35.19444444 | N6: =IF(L6=0,0,L6-$L$8) -> 19
A7: 3 | B7: =step2!B7 -> Milan Dragić | C7: =step2!I7 -> 600 | D7: =RoundRobin!C8 -> 0 | E7: =RoundRobin!D8 -> 10 | F7: =RoundRobin!C13 -> 0 | G7: =RoundRobin!D13 -> 10 | H7: =RoundRobin!C23 -> 0 | I7: =RoundRobin!D23 -> 10 | J7: =SUM(D7:I7) -> 30 | K7: =AVERAGE(D7,F7,H7) -> 0 | L7: =C7+J7 -> 630 | M7: =L7/18 -> 35 | N7: =IF(L7=0,0,L7-$L$8) -> 15.5
A8: 4 | B8: =step2!B8 -> Vladimir Štrbac | C8: =step2!I8 -> 584.5 | D8: =RoundRobin!C5 -> 0 | E8: =RoundRobin!D5 -> 10 | F8: =RoundRobin!C16 -> 0 | G8: =RoundRobin!D16 -> 10 | H8: =RoundRobin!C24 -> 0 | I8: =RoundRobin!D24 -> 10 | J8: =SUM(D8:I8) -> 30 | K8: =AVERAGE(D8,F8,H8) -> 0 | L8: =C8+J8 -> 614.5 | M8: =L8/18 -> 34.13888889 | N8: =IF(L8=0,0,L8-$L$8) -> 0

Sheet Zene kvalifikacije
A1: Kvalifikacije - Pojedinačno prvenstvo Srbije (F)
A2: Bowling Centar Kolosej - Ušće 23-24.02.2011
A4: Pozicija | B4: Ime igraca | C4: I igra | D4: II igra | E4: III igra | F4: IV igra | G4: V igra | H4: VI igra | I4: Total | J4: Prosek | K4: Cut
A5: 1 | B5: Dragana Petrović | C5: 204 | D5: 212 | E5: 140 | F5: 158 | G5: 202 | H5: 148 | I5: =SUM(C5:H5) -> 1064 | J5: =AVERAGE(C5:H5) -> 177.3333333 | K5: =IF(I5=0,0,I5-$I$8) -> 121
A6: 2 | B6: Danica Vijatović | C6: 151 | D6: 212 | E6: 163 | F6: 157 | G6: 159 | H6: 163 | I6: 1005 | J6: 167.5 | K6: 62
A7: 3 | B7: Zita Širmer | C7: 185 | D7: 134 | E7: 174 | F7: 149 | G7: 199 | H7: 152 | I7: 993 | J7: 165.5 | K7: 50
A8: 4 | B8: Biljana Mirić | C8: 130 | D8: 187 | E8: 189 | F8: 120 | G8: 151 | H8: 166 | I8: 943 | J8: 157.1666667 | K8: =IF(I8=0,0,I8-$I$8) -> 0
A9: 5 | B9: Nataša Drajer | C9: 139 | D9: 124 | E9: 121 | F9: 181 | G9: 171 | H9: 181 | I9: 917 | J9: 152.8333333 | K9: =IF(I9=0,0,I9-$I$8) -> -26

Sheet Zene RoundRobin
A1: STEP 3 - Round Robin (F)
B3: Ime igraca | C3: Igra | D3: Bonus | E3: Total
A4: 1 | B4: ='Zene kvalifikacije'!B5 -> Dragana Petrović | D4: =G4+H4 -> 10 | E4: =C4+D4 -> 10 | G4: =IF(C4=C5,10,IF(C4>C5,20,0)) -> 10 | H4: =IF(C4>=250,10,IF(C4>=200,5,0)) -> 0
A5: 4 | B5: ='Zene kvalifikacije'!B8 -> Biljana Mirić | D5: =G5+H5 -> 10 | E5: =C5+D5 -> 10 | G5: =IF(C5=C4,10,IF(C5>C4,20,0)) -> 10 | H5: =IF(C5>=250,10,IF(C5>=200,5,0)) -> 0
A7: 2 | B7: ='Zene kvalifikacije'!B6 -> Danica Vijatović | D7: =G7+H7 -> 10 | E7: =C7+D7 -> 10 | G7: =IF(C7=C8,10,IF(C7>C8,20,0)) -> 10 | H7: =IF(C7>=250,10,IF(C7>=200,5,0)) -> 0
A8: 3 | B8: ='Zene kvalifikacije'!B7 -> Zita Širmer | D8: =G8+H8 -> 10 | E8: =C8+D8 -> 10 | G8: =IF(C8=C7,10,IF(C8>C7,20,0)) -> 10 | H8: =IF(C8>=250,10,IF(C8>=200,5,0)) -> 0
B11: Ime igraca | C11: Igra | D11: Bonus | E11: Total
A12: 1 | B12: ='Zene kvalifikacije'!B5 -> Dragana Petrović | D12: =G12+H12 -> 10 | E12: =C12+D12 -> 10 | G12: =IF(C12=C13,10,IF(C12>C13,20,0)) -> 10 | H12: =IF(C12>=250,10,IF(C12>=200,5,0)) -> 0
A13: 3 | B13: ='Zene kvalifikacije'!B7 -> Zita Širmer | D13: =G13+H13 -> 10 | E13: =C13+D13 -> 10 | G13: =IF(C13=C12,10,IF(C13>C12,20,0)) -> 10 | H13: =IF(C13>=250,10,IF(C13>=200,5,0)) -> 0
A15: 2 | B15: ='Zene kvalifikacije'!B6 -> Danica Vijatović | D15: =G15+H15 -> 10 | E15: =C15+D15 -> 10 | G15: =IF(C15=C16,10,IF(C15>C16,20,0)) -> 10 | H15: =IF(C15>=250,10,IF(C15>=200,5,0)) -> 0
A16: 4 | B16: ='Zene kvalifikacije'!B8 -> Biljana Mirić | D16: =G16+H16 -> 10 | E16: =C16+D16 -> 10 | G16: =IF(C16=C15,10,IF(C16>C15,20,0)) -> 10 | H16: =IF(C16>=250,10,IF(C16>=200,5,0)) -> 0
B19: Ime igraca | C19: Igra | D19: Bonus | E19: Total
A20: 1 | B20: ='Zene kvalifikacije'!B5 -> Dragana Petrović | D20: =G20+H20 -> 10 | E20: =C20+D20 -> 10 | G20: =IF(C20=C21,10,IF(C20>C21,20,0)) -> 10 | H20: =IF(C20>=250,10,IF(C20>=200,5,0)) -> 0
A21: 2 | B21: ='Zene kvalifikacije'!B6 -> Danica Vijatović | D21: =G21+H21 -> 10 | E21: =C21+D21 -> 10 | G21: =IF(C21=C20,10,IF(C21>C20,20,0)) -> 10 | H21: =IF(C21>=250,10,IF(C21>=200,5,0)) -> 0
A23: 3 | B23: ='Zene kvalifikacije'!B7 -> Zita Širmer | D23: =G23+H23 -> 10 | E23: =C23+D23 -> 10 | G23: =IF(C23=C24,10,IF(C23>C24,20,0)) -> 10 | H23: =IF(C23>=250,10,IF(C23>=200,5,0)) -> 0
A24: 4 | B24: ='Zene kvalifikacije'!B8 -> Biljana Mirić | D24: =G24+H24 -> 10 | E24: =C24+D24 -> 10 | G24: =IF(C24=C23,10,IF(C24>C23,20,0)) -> 10 | H24: =IF(C24>=250,10,IF(C24>=200,5,0)) -> 0

Sheet Zene step3
A1: STEP 3 - Pojedinačno prvenstvo Srbije (F)
A2: Bowling Centar Kolosej - Ušće 25.02.2011
A4: Pozicija | B4: Ime igraca | C4: st2 | D4: I igra | E4: Bonus | F4: II igra | G4: Bonus | H4: III igra | I4: Bonus | J4: Total | K4: Prosek | L4: Total st3 | M4: Prosek st3 | N4: Cut
A5: 1 | B5: ='Zene kvalifikacije'!B5 -> Dragana Petrović | C5: ='Zene kvalifikacije'!I5 -> 1064 | D5: ='Zene RoundRobin'!C4 -> 0 | E5: ='Zene RoundRobin'!D4 -> 10 | F5: ='Zene RoundRobin'!C12 -> 0 | G5: ='Zene RoundRobin'!D12 -> 10 | H5: ='Zene RoundRobin'!C20 -> 0 | I5: ='Zene RoundRobin'!D20 -> 10 | J5: =SUM(D5:I5) -> 30 | K5: =AVERAGE(D5,F5,H5) -> 0 | L5: =C5+J5 -> 1094 | M5: =L5/18 -> 60.77777778 | N5: =IF(L5=0,0,L5-$L$8) -> 121
A6: 2 | B6: ='Zene kvalifikacije'!B6 -> Danica Vijatović | C6: ='Zene kvalifikacije'!I6 -> 1005 | D6: ='Zene RoundRobin'!C7 -> 0 | E6: ='Zene RoundRobin'!D7 -> 10 | F6: ='Zene RoundRobin'!C15 -> 0 | G6: ='Zene RoundRobin'!D15 -> 10 | H6: ='Zene RoundRobin'!C21 -> 0 | I6: ='Zene RoundRobin'!D21 -> 10 | J6: =SUM(D6:I6) -> 30 | K6: =AVERAGE(D6,F6,H6) -> 0 | L6: =C6+J6 -> 1035 | M6: =L6/18 -> 57.5 | N6: =IF(L6=0,0,L6-$L$8) -> 62
A7: 3 | B7: ='Zene kvalifikacije'!B7 -> Zita Širmer | C7: ='Zene kvalifikacije'!I7 -> 993 | D7: ='Zene RoundRobin'!C8 -> 0 | E7: ='Zene RoundRobin'!D8 -> 10 | F7: ='Zene RoundRobin'!C13 -> 0 | G7: ='Zene RoundRobin'!D13 -> 10 | H7: ='Zene RoundRobin'!C23 -> 0 | I7: ='Zene RoundRobin'!D23 -> 10 | J7: =SUM(D7:I7) -> 30 | K7: =AVERAGE(D7,F7,H7) -> 0 | L7: =C7+J7 -> 1023 | M7: =L7/18 -> 56.83333333 | N7: =IF(L7=0,0,L7-$L$8) -> 50
A8: 4 | B8: ='Zene kvalifikacije'!B8 -> Biljana Mirić | C8: ='Zene kvalifikacije'!I8 -> 943 | D8: ='Zene RoundRobin'!C5 -> 0 | E8: ='Zene RoundRobin'!D5 -> 10 | F8: ='Zene RoundRobin'!C16 -> 0 | G8: ='Zene RoundRobin'!D16 -> 10 | H8: ='Zene RoundRobin'!C24 -> 0 | I8: ='Zene RoundRobin'!D24 -> 10 | J8: =SUM(D8:I8) -> 30 | K8: =AVERAGE(D8,F8,H8) -> 0 | L8: =C8+J8 -> 973 | M8: =L8/18 -> 54.05555556 | N8: =IF(L8=0,0,L8-$L$8) -> 0
